bitfinex/quotes_SOLUSD_20220212
["timestamp","ask_amount","ask_price","bid_price","bid_amount"]
[1644684601842,5.136,97.36,97.28,12.36]
[1644684602048,1.43662266,97.359,97.26,12.36]
[1644684602244,1.43662266,97.355,97.24,12.36]
[1644684602543,15.4255,97.34,97.23,12.36]
[1644684602743,5.139,97.339,97.23,12.36]
[1644684602945,43.14180288,97.338,97.231,43.45568752]
[1644684603144,5.18335179,97.337,97.231,43.45568752]
[1644684603444,0.04435179,97.336,97.231,43.45568752]
[1644684603644,5.139,97.335,97.231,43.45568752]
[1644684603845,5.139,97.335,97.232,0.25]
[1644684604046,0.04435179,97.334,97.232,0.25]
[1644684604547,5.139,97.336,97.232,0.25]
[1644684604847,15.4273,97.33,97.232,0.25]
[1644684605047,15.4273,97.33,97.21,12.36]
[1644684605248,7.80825475,97.329,97.21,12.36]
[1644684605449,0.48,97.325,97.19,27.7902]
[1644684605646,1.43662266,97.31,97.19,15.4302]
[1644684605847,42.63917409,97.309,97.191,36.43582726]
[1644684606050,46.2551,97.308,97.191,36.43582726]
[1644684606246,5.141,97.307,97.191,36.43582726]
[1644684606448,5.18535179,97.307,97.192,0.25]
[1644684606648,0.04435179,97.306,97.192,0.25]
[1644684606849,15.4319,97.3,97.192,0.25]
[1644684607053,5.141,97.299,97.182,5.139]
[1644684607250,5.18535179,97.299,97.182,5.139]
[1644684607451,0.04435179,97.298,97.161,5.141]
[1644684607653,5.142,97.297,97.161,5.141]
[1644684607851,7.76590296,97.297,97.161,5.141]
[1644684608052,7.76590296,97.297,97.162,48.29357727]
[1644684608053,35.59783963,97.286,97.162,48.29357727]
[1644684608251,39.9636386,97.269,97.162,48.29357727]
[1644684608449,51.6182,97.268,97.163,5.142]
[1644684608852,63.11210296,97.268,97.163,5.142]
[1644684609052,2.62390296,97.267,97.145,0.024]
[1644684609251,5.143,97.266,97.142,0.024]
[1644684609452,5.143,97.266,97.132,0.274]
[1644684609651,15.438,97.26,97.132,0.274]
[1644684609852,5.144,97.259,97.132,0.274]
[1644684610052,7.76790296,97.259,97.133,5.144]
[1644684610253,2.62390296,97.258,97.134,0.024]
[1644684610756,5.144,97.257,97.134,0.024]
[1644684610955,5.144,97.257,97.132,5.168]
[1644684611555,5.144,97.257,97.133,2.62390296]
[1644684611757,15.4399,97.25,97.14,15.4394]
[1644684611955,39.70889841,97.249,97.141,5.168]
[1644684612155,23.7505,97.248,97.141,5.168]
[1644684612357,5.144,97.247,97.141,0.024]
[1644684612557,7.76790296,97.247,97.141,0.024]
[1644684612758,15.4412,97.24,97.132,0.024]
[1644684612959,5.144,97.239,97.132,0.024]
[1644684613162,39.70889841,97.249,97.133,5.144]
[1644684613358,39.70889841,97.249,97.134,0.024]
[1644684613559,39.70889841,97.249,97.135,5.144]
[1644684613758,39.70889841,97.249,97.135,7.76790296]
[1644684613960,39.70889841,97.249,97.14,15.4397]
[1644684614159,39.70889841,97.249,97.141,0.024]
[1644684614361,39.70889841,97.249,97.141,2.64790296]
[1644684614761,24.8775,97.265,97.142,7.76790296]
[1644684614962,1.43662266,97.275,97.143,0.024]
[1644684615160,1.43662266,97.278,97.144,5.143]
[1644684615366,1.43662266,97.278,97.145,0.024]
[1644684615563,1.43662266,97.277,97.146,104.0]
[1644684615863,40.8146178,97.276,97.161,37.05054647]
[1644684616263,5.143,97.275,97.162,106.62390296]
[1644684616463,5.143,97.275,97.163,5.143]
[1644684616662,40.8146178,97.276,97.163,7.76690296]
[1644684616865,40.8146178,97.276,97.164,2.62390296]
[1644684617065,5.142,97.275,97.165,5.142]
[1644684617268,40.8146178,97.276,97.18,12.36]
[1644684617466,40.8146178,97.276,97.191,35.70485969]
[1644684617666,40.8146178,97.276,97.192,5.142]
[1644684617867,40.8146178,97.276,97.191,35.70485969]
[1644684618067,40.8146178,97.276,97.192,5.142]
[1644684618266,5.142,97.275,97.191,35.70485969]
[1644684619869,5.142,97.275,97.19,12.36]
[1644684620069,1.43662266,97.268,97.17,18.05840296]
[1644684620267,1.43662266,97.262,97.17,27.7945]
[1644684620467,1.43662266,97.255,97.17,27.7945]
[1644684620870,51.74241308,97.254,97.17,27.7945]
[1644684621070,51.74241308,97.254,97.17,12.36]
[1644684621670,1.43662266,97.253,97.158,5.142]
[1644684621869,1.43662266,97.239,97.158,5.142]
[1644684622169,1.43662266,97.235,97.158,5.142]
[1644684622369,39.56095039,97.234,97.158,5.142]
[1644684622569,39.56095039,97.234,97.147,0.024]
[1644684622776,39.56095039,97.234,97.146,36.13443825]
[1644684622972,39.56095039,97.234,97.147,2.62390296]
[1644684623174,39.56095039,97.234,97.147,8.01790296]
[1644684623674,39.56095039,97.234,97.148,2.62390296]
[1644684623873,39.56095039,97.234,97.15,12.36]
[1644684624071,39.56095039,97.234,97.151,5.144]
[1644684624272,39.56095039,97.234,97.16,15.4369]
[1644684624571,39.56095039,97.234,97.161,50.66591494]
[1644684624771,39.56095039,97.234,97.161,45.52191494]
[1644684624973,39.56095039,97.234,97.15,12.36]
[1644684625172,5.144,97.233,97.149,0.024]
[1644684625377,5.144,97.233,97.141,0.024]
[1644684625575,5.144,97.233,97.14,30.42280296]
[1644684625973,39.56095039,97.234,97.141,41.53837316]
[1644684626175,39.56095039,97.234,97.141,41.81237316]
[1644684626374,39.56095039,97.234,97.15,15.4386]
[1644684627374,39.56095039,97.234,97.145,0.024]
[1644684627574,39.56095039,97.234,97.143,5.144]
[1644684627777,5.144,97.233,97.142,0.024]
[1644684627977,39.56095039,97.234,97.143,5.144]
[1644684628280,39.56095039,97.234,97.144,2.62390296]
[1644684628475,39.56095039,97.234,97.145,5.144]
[1644684628678,39.56095039,97.234,97.144,2.62390296]
[1644684628879,39.56095039,97.234,97.146,2.62390296]
[1644684629080,39.56095039,97.234,97.16,12.36]
[1644684629279,39.56095039,97.234,97.161,35.16795984]
[1644684630178,39.56095039,97.234,97.162,2.62390296]
[1644684630380,22.9808,97.253,97.17,15.4359]
[1644684630581,22.9808,97.253,97.18,12.36]
[1644684631079,1.43662266,97.247,97.163,5.144]
[1644684631282,1.43662266,97.246,97.163,5.144]
[1644684631479,48.26804089,97.245,97.164,2.62390296]
[1644684631681,48.26804089,97.245,97.17,15.4347]
[1644684632682,48.26804089,97.245,97.17,27.7947]
[1644684633083,48.26804089,97.245,97.19,15.4323]
[1644684633285,48.26804089,97.245,97.191,45.62546139]
[1644684635510,1.43662266,97.258,97.191,45.62546139]
[1644684635719,6.57862266,97.275,97.2,27.7912]
[1644684635912,1.43662266,97.283,97.2,27.7912]
[1644684636107,1.43662266,97.283,97.201,2.62390296]
[1644684636308,1.43662266,97.286,97.201,13.03828682]
[1644684636511,1.43662266,97.288,97.202,10.41438386]
[1644684636712,1.43662266,97.288,97.202,46.35285586]
[1644684636909,1.43662266,97.289,97.203,122.3373031]
[1644684637109,38.54541065,97.291,97.221,48.41556268]
[1644684637310,1.43662266,97.29,97.23,12.36]
[1644684637509,1.43662266,97.286,97.23,12.36]
[1644684637710,1.43662266,97.282,97.23,12.36]
[1644684638511,1.43662266,97.29,97.231,2.62390296]
[1644684638714,1.43662266,97.29,97.23,27.7866]
[1644684638913,38.54541065,97.291,97.23,27.7866]
[1644684638914,1.43662266,97.286,97.23,27.7866]
[1644684639313,1.43662266,97.288,97.23,27.7866]
[1644684639513,1.43662266,97.285,97.23,12.36]
[1644684639713,1.43662266,97.286,97.23,12.36]
[1644684639914,38.54541065,97.291,97.231,2.62390296]
[1644684640113,38.54541065,97.291,97.23,12.36]
[1644684640313,1.43662266,97.289,97.23,12.36]
[1644684640719,1.43662266,97.286,97.23,12.36]
[1644684640916,5.14,97.285,97.23,12.36]
[1644684641115,1.43662266,97.28,97.21,27.7884]
[1644684641314,1.43662266,97.276,97.21,27.7884]
[1644684641513,5.141,97.279,97.21,27.7884]
[1644684641715,1.43662266,97.281,97.21,27.7884]
[1644684642114,5.141,97.28,97.21,27.7884]
[1644684642315,1.43662266,97.282,97.21,27.7884]
[1644684642714,1.43662266,97.281,97.21,27.7884]
[1644684642916,38.54541065,97.291,97.21,27.7884]
[1644684642917,1.43662266,97.28,97.21,27.7884]
[1644684643117,6.57762266,97.28,97.21,27.7884]
[1644684643316,1.43662266,97.279,97.21,27.7884]
[1644684643516,1.43662266,97.278,97.21,27.7884]
[1644684643717,46.80754416,97.276,97.21,27.7884]
[1644684643917,5.141,97.275,97.21,27.7884]
[1644684644115,46.80754416,97.276,97.21,27.7884]
[1644684644515,48.24416682,97.276,97.21,12.36]
[1644684644717,6.57762266,97.275,97.19,27.7916]
[1644684645116,1.43662266,97.273,97.19,27.7916]
[1644684645315,5.142,97.272,97.19,27.7916]
[1644684645515,1.43662266,97.266,97.19,15.4316]
[1644684645718,1.43662266,97.267,97.19,15.4316]
[1644684646417,1.43662266,97.265,97.19,15.4316]
[1644684646617,1.43662266,97.264,97.19,15.4316]
[1644684647017,6.57862266,97.263,97.191,0.25]
[1644684647219,6.57862266,97.264,97.191,0.25]
[1644684647418,1.43662266,97.262,97.191,38.22966198]
[1644684647619,48.75992099,97.261,97.191,0.25]
[1644684648120,48.75992099,97.261,97.19,12.36]
[1644684648319,48.75992099,97.261,97.17,63.7977]
[1644684648522,48.75992099,97.261,97.172,0.25]
[1644684649019,48.75992099,97.261,97.18,15.4333]
[1644684649919,48.75992099,97.261,97.181,5.142]
[1644684650125,48.75992099,97.261,97.191,43.92655639]
[1644684650419,0.04435179,97.286,97.191,43.92655639]
[1644684650420,1.43662266,97.267,97.192,5.142]
[1644684650618,4.31701224,97.32,97.193,104.0]
[1644684650619,1.48097445,97.285,97.193,104.0]
[1644684650819,1.43662266,97.285,97.193,106.62390296]
[1644684651020,1.43662266,97.286,97.21,15.4268]
[1644684651319,0.04435179,97.301,97.21,15.4268]
[1644684651320,39.07589548,97.281,97.21,12.36]
[1644684651521,1.43662266,97.275,97.21,12.36]
[1644684651721,1.43662266,97.271,97.21,12.36]
[1644684651921,5.141,97.27,97.21,12.36]
[1644684652119,1.43662266,97.275,97.21,27.7899]
[1644684652318,40.51251814,97.281,97.21,27.7899]
[1644684652523,39.07589548,97.281,97.21,27.7899]
[1644684652722,1.43662266,97.28,97.21,27.7899]
[1644684653322,1.43662266,97.278,97.21,27.7899]
[1644684653521,39.07589548,97.281,97.21,27.7899]
[1644684653522,1.43662266,97.279,97.21,27.7899]
[1644684653723,39.07589548,97.281,97.21,27.7899]
[1644684654022,39.07589548,97.281,97.22,15.4276]
[1644684654223,39.07589548,97.281,97.221,0.25]
[1644684657423,39.07589548,97.281,97.22,15.4276]
[1644684658024,1.43662266,97.278,97.22,15.4276]
[1644684658829,1.43662266,97.278,97.221,0.25]
[1644684659025,5.141,97.277,97.221,0.25]
[1644684659427,6.57762266,97.277,97.221,0.25]
[1644684659631,39.07589548,97.281,97.221,0.25]
[1644684659828,39.07589548,97.281,97.222,5.141]
[1644684660027,39.07589548,97.281,97.221,37.3415389]
[1644684660830,39.07589548,97.281,97.201,5.391]
[1644684661029,5.141,97.28,97.201,5.391]
[1644684661331,1.43662266,97.275,97.201,5.141]
[1644684661829,5.141,97.28,97.201,5.141]
[1644684661830,1.43662266,97.274,97.202,42.16651484]
[1644684662133,5.141,97.28,97.202,44.7904178]
[1644684662331,39.07589548,97.281,97.203,2.62390296]
[1644684662732,39.07589548,97.281,97.204,0.25]
[1644684663232,39.07589548,97.281,97.205,7.76490296]
[1644684663430,39.07589548,97.281,97.21,15.4298]
[1644684663632,39.07589548,97.281,97.22,14.82]
[1644684663833,39.07589548,97.281,97.221,46.62934787]
[1644684664432,39.07589548,97.281,97.221,41.48834787]
[1644684664834,39.07589548,97.281,97.23,15.4258]
[1644684665036,39.07589548,97.281,97.23,30.2458]
[1644684665636,1.43662266,97.29,97.23,30.2458]
[1644684665844,1.43662266,97.294,97.231,7.76490296]
[1644684666038,1.43662266,97.297,97.24,15.4236]
[1644684666440,1.43662266,97.292,97.24,15.4236]
[1644684666638,37.40934412,97.291,97.241,45.67223945]
[1644684668741,37.40934412,97.291,97.24,15.4236]
[1644684669556,37.40934412,97.291,97.23,15.427]
[1644684670457,37.40934412,97.291,97.22,14.82]
[1644684670859,36.90934412,97.291,97.221,37.39287916]
[1644684671059,5.141,97.29,97.221,37.39287916]
[1644684671261,36.90934412,97.291,97.221,37.39287916]
[1644684674265,5.141,97.29,97.221,37.39287916]
[1644684675465,36.90934412,97.291,97.222,5.141]
[1644684676065,38.34596678,97.291,97.222,5.141]
[1644684676866,1.43662266,97.29,97.222,5.141]
[1644684677068,1.43662266,97.288,97.222,5.141]
[1644684677266,1.43662266,97.282,97.222,5.141]
[1644684677470,1.43662266,97.279,97.222,5.141]
[1644684677667,1.43662266,97.275,97.222,5.141]
[1644684677866,1.43662266,97.273,97.222,5.141]
[1644684678268,1.43662266,97.267,97.222,5.141]
[1644684678468,1.43662266,97.268,97.207,43.03183987]
[1644684678668,5.142,97.266,97.2,15.4309]
[1644684678869,1.43662266,97.264,97.201,0.25]
[1644684679271,1.43662266,97.266,97.201,2.87390296]
[1644684679569,1.43662266,97.272,97.21,15.4307]
[1644684679770,1.43662266,97.27,97.211,5.141]
[1644684679971,1.43662266,97.27,97.21,15.4307]
[1644684680169,1.43662266,97.269,97.21,15.4307]
[1644684680569,1.43662266,97.272,97.21,15.4307]
[1644684680971,46.21737069,97.274,97.211,5.141]
[1644684681171,1.43662266,97.273,97.211,5.141]
[1644684681772,46.21737069,97.274,97.211,5.141]
[1644684681773,1.43662266,97.271,97.211,5.141]
[1644684682774,1.43662266,97.268,97.211,5.141]
[1644684682974,1.43662266,97.254,97.211,5.141]
[1644684683174,1.43662266,97.249,97.211,5.141]
[1644684683374,1.43662266,97.247,97.211,5.141]
[1644684683574,3.6504378,97.27,97.211,5.141]
[1644684683575,45.00731518,97.246,97.211,5.141]
[1644684683775,43.57069252,97.246,97.211,5.141]
[1644684684274,53.51069252,97.246,97.17,30.2559]
[1644684684475,6.57962266,97.245,97.17,30.2559]
[1644684684677,1.43662266,97.243,97.171,0.25]
[1644684684875,5.143,97.245,97.171,0.25]
[1644684685287,1.43662266,97.243,97.171,0.25]
[1644684685477,1.43662266,97.244,97.171,0.25]
[1644684685675,43.57069252,97.246,97.18,15.4352]
[1644684686078,43.57069252,97.246,97.181,5.143]
[1644684687275,43.57069252,97.246,97.18,14.82]
[1644684687781,43.57069252,97.246,97.19,15.4335]
[1644684689179,43.57069252,97.246,97.191,5.143]
[1644684689781,1.43662266,97.264,97.192,0.25]
[1644684689982,1.43662266,97.265,97.2,15.4323]
[1644684690185,1.43662266,97.274,97.2,15.4323]
[1644684690387,1.43662266,97.275,97.2,15.4323]
[1644684690584,1.43662266,97.284,97.201,7.76490296]
[1644684690788,44.55633871,97.283,97.201,7.76490296]
[1644684690986,44.55633871,97.283,97.202,2.62390296]
[1644684691785,44.55633871,97.283,97.22,15.4277]
[1644684691985,44.55633871,97.283,97.221,48.79333783]
[1644684692889,44.55633871,97.283,97.22,14.82]
[1644684693088,45.99296137,97.283,97.22,14.82]
[1644684693789,1.43662266,97.282,97.22,14.82]
[1644684693990,1.43662266,97.281,97.22,14.82]
[1644684694792,1.43662266,97.281,97.22,30.249]
[1644684694990,44.55633871,97.283,97.22,30.249]
[1644684696412,1.43662266,97.282,97.22,30.249]
[1644684696613,44.55633871,97.283,97.202,2.62390296]
[1644684696912,44.55633871,97.283,97.201,5.141]
[1644684696913,1.43662266,97.27,97.201,5.141]
[1644684697113,1.43662266,97.268,97.201,5.141]
[1644684697315,1.43662266,97.269,97.201,5.141]
[1644684697514,1.43662266,97.267,97.201,5.141]
[1644684697714,42.46443964,97.268,97.201,5.141]
[1644684697715,43.9010623,97.268,97.201,5.141]
[1644684697915,1.43662266,97.266,97.201,5.141]
[1644684698315,42.46443964,97.268,97.202,0.25]
[1644684698518,43.9010623,97.268,97.202,0.25]
[1644684698715,42.46443964,97.268,97.202,0.25]
[1644684700519,42.46443964,97.268,97.21,15.4309]
[1644684700724,42.46443964,97.268,97.211,34.97879049]
[1644684700926,42.46443964,97.268,97.21,15.4309]
[1644684701319,42.46443964,97.268,97.21,30.2509]
[1644684701921,42.46443964,97.268,97.211,46.51370046]
[1644684702121,0.04289047,97.287,97.23,15.4274]
[1644684702322,0.04289047,97.286,97.23,15.4274]
[1644684702522,24.2488,97.288,97.23,15.4274]
[1644684702721,24.2488,97.288,97.211,46.51370046]
[1644684702722,1.43662266,97.283,97.211,46.51370046]
[1644684702922,1.43662266,97.28,97.212,109.141]
[1644684703125,1.43662266,97.28,97.211,46.51370046]
[1644684703322,45.18164899,97.282,97.211,46.51370046]
[1644684703522,45.18164899,97.282,97.212,5.141]
[1644684703722,45.18164899,97.282,97.211,46.51370046]
[1644684703922,6.57762266,97.281,97.211,46.51370046]
[1644684704122,1.43662266,97.28,97.211,46.51370046]
[1644684704322,6.57762266,97.279,97.211,46.51370046]
[1644684704524,1.43662266,97.279,97.211,46.51370046]
[1644684704722,6.57762266,97.28,97.22,15.4291]
[1644684704923,45.18164899,97.282,97.221,5.141]
[1644684706022,45.18164899,97.282,97.23,15.4268]
[1644684707223,1.43662266,97.283,97.23,15.4268]
[1644684707424,1.43662266,97.291,97.23,15.4268]
[1644684707626,1.43662266,97.291,97.25,15.424]
[1644684707824,1.43662266,97.293,97.25,15.424]
[1644684708227,1.43662266,97.295,97.24,14.82]
[1644684708426,1.43662266,97.286,97.22,14.82]
[1644684708630,1.43662266,97.284,97.221,5.14]
[1644684708826,1.43662266,97.283,97.221,5.14]
[1644684709226,40.53669727,97.282,97.22,75.12547141]
[1644684709424,45.67769727,97.282,97.22,75.12547141]
[1644684709628,40.53669727,97.282,97.22,75.12547141]
[1644684710238,40.53669727,97.282,97.221,0.25]
[1644684710437,40.53669727,97.282,97.23,15.4268]
[1644684711638,40.53669727,97.282,97.231,5.141]
[1644684711839,40.53669727,97.282,97.23,15.4268]
[1644684712441,40.53669727,97.282,97.24,15.4251]
[1644684712841,40.53669727,97.282,97.221,0.25]
[1644684713341,1.43662266,97.287,97.222,5.141]
[1644684713549,0.04289047,97.294,97.23,15.4277]
[1644684713738,0.04289047,97.3,97.24,14.82]
[1644684714041,1.43662266,97.309,97.241,5.14]
[1644684714238,36.64672841,97.315,97.242,48.35702094]
[1644684714439,36.64672841,97.315,97.243,109.139]
[1644684714641,36.64672841,97.315,97.243,111.76290296]
[1644684714837,36.64672841,97.315,97.244,2.62390296]
[1644684715039,36.64672841,97.315,97.245,5.139]
[1644684715239,36.64672841,97.315,97.261,41.10326059]
[1644684715439,36.64672841,97.315,97.27,15.4186]
[1644684715639,1.43662266,97.323,97.271,5.139]
[1644684716041,1.43662266,97.329,97.271,5.139]
[1644684716641,38.25411873,97.328,97.271,5.139]
[1644684716843,39.69074139,97.328,97.271,5.139]
[1644684717043,38.25411873,97.328,97.271,5.139]
[1644684717742,38.25411873,97.328,97.28,15.4186]
[1644684718041,38.25411873,97.328,97.281,37.69749183]
[1644684718843,38.25411873,97.328,97.28,15.4186]
[1644684719244,5.138,97.327,97.28,15.4186]
[1644684720444,5.138,97.327,97.262,45.95987812]
[1644684720644,1.43662266,97.326,97.262,45.95987812]
[1644684720847,38.25411873,97.328,97.263,5.139]
[1644684721049,37.75411873,97.328,97.263,5.139]
[1644684721248,37.75411873,97.328,97.263,109.139]
[1644684721669,37.75411873,97.328,97.263,5.139]
[1644684721870,37.75411873,97.328,97.27,15.4214]
[1644684722268,37.75411873,97.328,97.271,2.62390296]
[1644684722671,37.75411873,97.328,97.263,5.139]
[1644684723370,37.75411873,97.328,97.28,15.4181]
[1644684723573,39.19074139,97.328,97.28,15.4181]
[1644684724373,37.75411873,97.328,97.28,15.4181]
[1644684724771,39.19074139,97.328,97.28,15.4181]
[1644684724972,37.75411873,97.328,97.28,15.4181]
[1644684725474,39.19074139,97.328,97.28,15.4181]
[1644684725671,37.75411873,97.328,97.281,0.25]
[1644684726472,37.75411873,97.328,97.26,66.2137]
[1644684726672,37.75411873,97.328,97.27,0.25]
[1644684726872,1.43662266,97.327,97.27,0.25]
[1644684727872,37.75411873,97.328,97.27,15.6707]
[1644684728073,37.75411873,97.328,97.271,7.76190296]
[1644684728474,37.75411873,97.328,97.271,5.138]
[1644684728677,0.04289047,97.353,97.28,14.82]
[1644684728874,5.138,97.357,97.28,14.82]
[1644684728875,0.04289047,97.343,97.281,109.136]
[1644684729074,0.04289047,97.361,97.281,111.75990296]
[1644684729275,0.04289047,97.356,97.282,14.05893127]
[1644684729476,0.04289047,97.388,97.283,109.136]
[1644684729678,0.04289047,97.397,97.285,104.0]
[1644684729876,0.04289047,97.387,97.286,5.136]
[1644684730077,0.04289047,97.396,97.3,14.82]
[1644684730275,0.04289047,97.386,97.32,15.4095]
[1644684730476,0.04289047,97.395,97.321,34.19786573]
[1644684730675,43.32426558,97.398,97.321,34.19786573]
[1644684730676,5.135,97.397,97.321,34.19786573]
[1644684730879,43.32426558,97.398,97.322,5.135]
[1644684731078,43.32426558,97.398,97.322,109.135]
[1644684732175,112.5,97.401,97.323,2.62390296]
[1644684732376,112.5,97.401,97.341,104.0]
[1644684732575,4.31701224,97.466,97.341,104.0]
[1644684732576,0.04289047,97.415,97.35,14.82]
[1644684732776,0.04289047,97.419,97.35,14.82]
[1644684732979,8.04411486,97.443,97.35,14.82]
[1644684733178,0.04289047,97.437,97.351,47.66406414]
[1644684733375,45.61309182,97.442,97.351,47.66406414]
[1644684733577,45.61309182,97.442,97.352,104.0]
[1644684733578,0.04289047,97.437,97.352,104.0]
[1644684733779,8.62374432,97.441,97.36,15.4044]
[1644684733976,0.04289047,97.437,97.36,30.2244]
[1644684734181,5.133,97.436,97.36,30.2244]
[1644684734376,5.133,97.439,97.361,5.133]
[1644684734578,4.133,97.441,97.361,5.133]
[1644684734776,4.133,97.441,97.36,14.82]
[1644684735178,4.133,97.441,97.38,15.4043]
[1644684735378,42.1223475,97.442,97.381,37.35032365]
[1644684735578,5.132,97.441,97.381,37.35032365]
[1644684736283,5.132,97.441,97.39,15.4028]
[1644684736687,4.632,97.441,97.39,15.4028]
[1644684736890,5.17489047,97.465,97.39,15.4028]
[1644684737092,5.132,97.465,97.39,15.4028]
[1644684737490,0.04289047,97.467,97.39,30.2228]
[1644684737690,46.944,97.498,97.41,15.3968]
[1644684737691,44.50454043,97.472,97.41,15.3968]
[1644684737892,39.37354043,97.472,97.411,43.88232138]
[1644684738190,38.87354043,97.472,97.412,104.0]
[1644684738389,5.17389047,97.495,97.412,104.0]
[1644684738590,5.17289047,97.492,97.412,104.0]
[1644684738792,5.13,97.492,97.412,104.0]
[1644684738991,5.13,97.496,97.412,104.0]
[1644684739393,5.17289047,97.497,97.412,104.0]
[1644684739596,43.61831534,97.495,97.412,104.0]
[1644684739798,5.13,97.494,97.42,15.3951]
[1644684741900,5.13,97.494,97.412,5.13]
[1644684742098,2.62390296,97.493,97.412,5.13]
[1644684742299,5.13,97.492,97.412,5.13]
[1644684742697,5.13,97.492,97.413,43.59617623]
[1644684743100,5.13,97.492,97.4,15.3998]
[1644684743298,2.66679343,97.491,97.4,15.3998]
[1644684743597,5.131,97.49,97.4,15.3998]
[1644684743799,23.19899343,97.49,97.4,15.3998]
[1644684744009,2.62390296,97.489,97.39,14.82]
[1644684744198,0.04289047,97.488,97.39,14.82]
[1644684744600,2.62390296,97.487,97.39,14.82]
[1644684744901,7.75490296,97.487,97.391,0.25]
[1644684745100,0.04289047,97.486,97.391,44.19835585]
[1644684745303,5.131,97.485,97.4,15.4]
[1644684745502,5.131,97.485,97.401,5.131]
[1644684745702,0.04289047,97.486,97.401,5.131]
[1644684745906,5.131,97.485,97.4,15.4]
[1644684746104,0.04289047,97.486,97.4,15.4]
[1644684746302,43.61831534,97.495,97.4,15.4]
[1644684746303,0.04289047,97.492,97.4,15.4]
[1644684746505,0.04289047,97.486,97.4,15.4]
[1644684746907,5.131,97.485,97.4,15.4]
[1644684747306,0.04289047,97.486,97.4,15.4]
[1644684747606,5.17389047,97.492,97.4,30.22]
[1644684747826,0.04289047,97.486,97.4,30.22]
[1644684748028,0.04289047,97.491,97.4,30.22]
[1644684748327,0.04289047,97.486,97.4,30.22]
[1644684748630,43.61831534,97.495,97.4,30.22]
[1644684748631,0.04289047,97.49,97.4,30.22]
[1644684748827,0.04289047,97.486,97.4,30.22]
[1644684749031,5.131,97.485,97.401,5.13]
[1644684749229,5.131,97.485,97.41,15.3983]
[1644684749428,0.04289047,97.488,97.41,15.3983]
[1644684749628,5.13,97.485,97.39,14.82]
[1644684749828,5.131,97.487,97.39,14.82]
[1644684750033,5.17389047,97.484,97.39,14.82]
[1644684750229,24.6835,97.483,97.391,5.131]
[1644684750428,29.85739047,97.483,97.4,15.3999]
[1644684750633,0.04289047,97.482,97.401,5.131]
[1644684750829,24.6835,97.483,97.402,0.25]
[1644684751029,24.6835,97.483,97.403,5.131]
[1644684751829,24.6835,97.483,97.421,47.84716708]
[1644684752031,5.13,97.482,97.421,47.84716708]
[1644684752629,5.13,97.482,97.42,15.3968]
[1644684753830,5.13,97.482,97.403,5.131]
[1644684754032,5.13,97.482,97.404,0.25]
[1644684754234,0.04289047,97.494,97.404,0.25]
[1644684754432,0.04289047,97.494,97.405,2.62390296]
[1644684754634,5.13,97.493,97.42,14.82]
[1644684754833,43.61831534,97.495,97.421,38.32013923]
[1644684755031,5.13,97.492,97.42,30.2155]
[1644684755234,43.61831534,97.495,97.42,30.2155]
[1644684755235,5.13,97.494,97.42,30.2155]
[1644684755445,5.13,97.491,97.42,30.2155]
[1644684755637,5.13,97.494,97.42,30.2155]
[1644684756236,43.61831534,97.495,97.421,5.13]
[1644684756839,43.61831534,97.495,97.422,0.25]
[1644684757035,43.61831534,97.495,97.421,5.13]
[1644684757236,3.44240225,97.494,97.421,5.13]
[1644684757438,5.13,97.493,97.421,5.13]
[1644684757636,3.44240225,97.492,97.421,5.13]
[1644684757836,5.13,97.491,97.421,5.13]
[1644684758036,3.44240225,97.49,97.421,5.13]
[1644684758237,5.13,97.489,97.4,15.3989]
[1644684758436,2.86822439,97.487,97.4,15.3989]
[1644684758637,5.131,97.486,97.4,15.3989]
[1644684758838,5.17389047,97.486,97.4,15.3989]